[Event "Late-Titled-Tuesday-Blitz-April-30-2024"]
[Site "Chess.com"]
[Date "2024.04.30"]
[Round "11"]
[White "Statham_01"]
[Black "lupta_robin"]
[Result "1-0"]
[WhiteElo "2651"]
[BlackElo "2625"]
[TimeControl "180+1"]
[EndTime "16:05:38 PDT"]
[Termination "Statham_01 won by resignation"]

1. e4 {[%clk 0:03:00.9]} 1... g6 {[%clk 0:02:59.9]} 2. d4 {[%clk 0:03:00.8]}
2... Nf6 {[%clk 0:03:00.1]} 3. e5 {[%clk 0:03:00.2]} 3... Nh5 {[%clk 0:03:00.3]}
4. Nf3 {[%clk 0:02:58.7]} 4... d6 {[%clk 0:03:00.6]} 5. Nc3 {[%clk 0:02:52.8]}
5... dxe5 {[%clk 0:02:48.2]} 6. Nxe5 {[%clk 0:02:49.1]} 6... Bg7 {[%clk
0:02:47.3]} 7. Bc4 {[%clk 0:02:47.3]} 7... e6 {[%clk 0:02:47.3]} 8. Be3 {[%clk
0:02:37.1]} 8... O-O {[%clk 0:02:37.8]} 9. Qd2 {[%clk 0:02:34.2]} 9... c5 {[%clk
0:02:35]} 10. O-O-O {[%clk 0:02:16.9]} 10... cxd4 {[%clk 0:02:33.3]} 11. Bxd4
{[%clk 0:02:17]} 11... Qc7 {[%clk 0:02:07.2]} 12. Nb5 {[%clk 0:02:03.4]} 12...
Qd8 {[%clk 0:01:57.5]} 13. Bc3 {[%clk 0:01:19.5]} 13... Qxd2+ {[%clk 0:01:28.7]}
14. Rxd2 {[%clk 0:01:19.6]} 14... Nc6 {[%clk 0:01:29.3]} 15. Nxc6 {[%clk
0:01:04.3]} 15... bxc6 {[%clk 0:01:30.2]} 16. Bxg7 {[%clk 0:01:00.5]} 16... Kxg7
{[%clk 0:01:30.1]} 17. Nd6 {[%clk 0:00:52.8]} 17... Nf4 {[%clk 0:01:18.3]} 18.
g3 {[%clk 0:00:45.3]} 18... Nd5 {[%clk 0:01:18.1]} 19. Be2 {[%clk 0:00:41]}
19... a5 {[%clk 0:01:02.6]} 20. c4 {[%clk 0:00:35.9]} 20... Nb4 {[%clk
0:01:02.9]} 21. a3 {[%clk 0:00:24.5]} 21... Na6 {[%clk 0:01:02.8]} 22. Bf3
{[%clk 0:00:20.4]} 22... Nc5 {[%clk 0:01:01.2]} 23. Bxc6 {[%clk 0:00:16.1]}
23... Rb8 {[%clk 0:00:38.5]} 24. Kc2 {[%clk 0:00:16]} 24... Ba6 {[%clk 0:00:39]}
25. Bb5 {[%clk 0:00:15.9]} 25... Bxb5 {[%clk 0:00:31.1]} 26. cxb5 {[%clk
0:00:10.9]} 26... Rb6 {[%clk 0:00:20.4]} 27. b4 {[%clk 0:00:10.8]} 27... axb4
{[%clk 0:00:18.4]} 28. axb4 {[%clk 0:00:11.7]} 28... Nb7 {[%clk 0:00:18.5]} 29.
Nxb7 {[%clk 0:00:05.5]} 29... Rxb7 {[%clk 0:00:19.4]} 30. Kb3 {[%clk 0:00:05.3]}
30... Rxb5 {[%clk 0:00:19.6]} 31. Rd4 {[%clk 0:00:05.8]} 31... Rc8 {[%clk
0:00:17.5]} 32. Rhd1 {[%clk 0:00:05.9]} 32... h5 {[%clk 0:00:14.2]} 33. h4
{[%clk 0:00:05.8]} 33... Rf5 {[%clk 0:00:13.5]} 34. f4 {[%clk 0:00:05.2]} 34...
Rb5 {[%clk 0:00:12.5]} 35. Rc4 {[%clk 0:00:04.9]} 35... Rcb8 {[%clk 0:00:11.3]}
36. Rd7 {[%clk 0:00:04.9]} 36... e5 {[%clk 0:00:05.6]} 37. Kc3 {[%clk
0:00:03.4]} 37... exf4 {[%clk 0:00:05.2]} 38. Rxf4 {[%clk 0:00:03.7]} 38... Rc8+
{[%clk 0:00:05.5]} 39. Kb3 {[%clk 0:00:03.7]} 39... Rf8 {[%clk 0:00:05.6]} 40.
Rc7 {[%clk 0:00:03]} 40... Rb6 {[%clk 0:00:05.5]} 41. Kc4 {[%clk 0:00:03.2]}
41... Rf6 {[%clk 0:00:04.3]} 42. Rxf6 {[%clk 0:00:03]} 42... Kxf6 {[%clk
0:00:05.2]} 43. b5 {[%clk 0:00:03.7]} 43... g5 {[%clk 0:00:04.6]} 44. b6 {[%clk
0:00:03.7]} 44... Kf5 {[%clk 0:00:03.6]} 45. b7 {[%clk 0:00:03.8]} 45... Rb8
{[%clk 0:00:03.4]} 46. Rxf7+ {[%clk 0:00:03.6]} 46... Kg4 {[%clk 0:00:04]} 47.
Rg7 {[%clk 0:00:04.2]} 47... Kxg3 {[%clk 0:00:03.9]} 48. hxg5 {[%clk 0:00:04.6]}
48... h4 {[%clk 0:00:04.4]} 49. Kc5 {[%clk 0:00:05.3]} 49... h3 {[%clk
0:00:04.9]} 50. Kc6 {[%clk 0:00:05.4]} 50... Rh8 {[%clk 0:00:05]} 51. Rd7 {[%clk
0:00:03.1]} 51... h2 {[%clk 0:00:05.2]} 52. Rd1 {[%clk 0:00:03.5]} 52... Kg4
{[%clk 0:00:04.3]} 53. g6 {[%clk 0:00:03.6]} 53... Rd8 {[%clk 0:00:01.6]} 54.
Rh1 {[%clk 0:00:03.3]} 54... Kg3 {[%clk 0:00:01.4]} 55. Kc7 {[%clk 0:00:03.6]}
55... Rg8 {[%clk 0:00:01.9]} 56. b8=Q {[%clk 0:00:04.1]} 56... Rg7+ {[%clk
0:00:02.3]} 57. Kc8+ {[%clk 0:00:04.3]} 57... Kg2 {[%clk 0:00:02.3]} 58. Qxh2+
{[%clk 0:00:04.9]} 1-0

[Event "Late-Titled-Tuesday-Blitz-April-30-2024"]
[Site "Chess.com"]
[Date "2024.04.30"]
[Round "11"]
[White "Individoom"]
[Black "WindWhistler11"]
[Result "1-0"]
[WhiteElo "2768"]
[BlackElo "2570"]
[TimeControl "180+1"]
[EndTime "16:05:45 PDT"]
[Termination "Individoom won on time"]

1. b3 {[%clk 0:02:59.6]} 1... Nf6 {[%clk 0:02:57.2]} 2. Bb2 {[%clk 0:02:56.4]}
2... e6 {[%clk 0:02:56.2]} 3. Nf3 {[%clk 0:02:56.1]} 3... c5 {[%clk 0:02:56.3]}
4. e3 {[%clk 0:02:54.4]} 4... b6 {[%clk 0:02:56.4]} 5. d4 {[%clk 0:02:52]} 5...
Bb7 {[%clk 0:02:56.4]} 6. Bd3 {[%clk 0:02:52.3]} 6... cxd4 {[%clk 0:02:54.6]} 7.
exd4 {[%clk 0:02:52.1]} 7... d6 {[%clk 0:02:55.3]} 8. O-O {[%clk 0:02:51.8]}
8... Be7 {[%clk 0:02:56]} 9. c4 {[%clk 0:02:50.8]} 9... O-O {[%clk 0:02:56.7]}
10. Nbd2 {[%clk 0:02:50.8]} 10... Nbd7 {[%clk 0:02:57.4]} 11. Re1 {[%clk
0:02:50.3]} 11... Re8 {[%clk 0:02:58]} 12. h3 {[%clk 0:02:49.7]} 12... Nf8
{[%clk 0:02:58.7]} 13. a4 {[%clk 0:02:45.9]} 13... Ng6 {[%clk 0:02:57.9]} 14. a5
{[%clk 0:02:37.7]} 14... bxa5 {[%clk 0:02:47.7]} 15. Bc3 {[%clk 0:02:37.2]}
15... Nf4 {[%clk 0:02:36.8]} 16. Bf1 {[%clk 0:02:14.1]} 16... h6 {[%clk
0:02:20.6]} 17. Bxa5 {[%clk 0:02:08.9]} 17... Qd7 {[%clk 0:02:20.4]} 18. b4
{[%clk 0:02:08.2]} 18... Nh7 {[%clk 0:02:10.4]} 19. g3 {[%clk 0:02:07.1]} 19...
Ng6 {[%clk 0:02:06.6]} 20. Bg2 {[%clk 0:02:06.7]} 20... f5 {[%clk 0:02:02]} 21.
b5 {[%clk 0:02:02.7]} 21... Bf6 {[%clk 0:01:48.9]} 22. Bc3 {[%clk 0:02:01.2]}
22... e5 {[%clk 0:01:35.4]} 23. dxe5 {[%clk 0:01:59.9]} 23... dxe5 {[%clk
0:01:36.1]} 24. Nb3 {[%clk 0:01:59.8]} 24... Qf7 {[%clk 0:01:25.6]} 25. Na5
{[%clk 0:01:57.8]} 25... Be4 {[%clk 0:01:24.7]} 26. Nd2 {[%clk 0:01:52.1]} 26...
Bxg2 {[%clk 0:01:22.2]} 27. Kxg2 {[%clk 0:01:51.7]} 27... Rad8 {[%clk
0:01:12.8]} 28. Nc6 {[%clk 0:01:47.1]} 28... Rd7 {[%clk 0:01:09.8]} 29. Qe2
{[%clk 0:01:45.2]} 29... e4 {[%clk 0:01:06.6]} 30. Bxf6 {[%clk 0:01:42.8]} 30...
Nxf6 {[%clk 0:01:04.7]} 31. Nb3 {[%clk 0:01:33.3]} 31... f4 {[%clk 0:01:04.8]}
32. Kh2 {[%clk 0:01:30.4]} 32... Ne5 {[%clk 0:00:49.8]} 33. Nc5 {[%clk
0:01:21.9]} 33... Nf3+ {[%clk 0:00:46.3]} 34. Kh1 {[%clk 0:01:21.1]} 34... Qh5
{[%clk 0:00:42.6]} 35. Qf1 {[%clk 0:01:20.1]} 35... Qxc5 {[%clk 0:00:41.6]} 36.
Red1 {[%clk 0:01:18]} 36... Qg5 {[%clk 0:00:36.1]} 37. Rxd7 {[%clk 0:01:13.1]}
37... Nxd7 {[%clk 0:00:37]} 38. Rxa7 {[%clk 0:01:13]} 38... Nc5 {[%clk 0:00:32]}
39. Qg2 {[%clk 0:01:00.8]} 39... Ne1 {[%clk 0:00:31.6]} 40. Qg1 {[%clk
0:00:59.3]} 40... Nf3 {[%clk 0:00:30.6]} 41. Qg2 {[%clk 0:00:59.3]} 41... Nd3
{[%clk 0:00:30]} 42. gxf4 {[%clk 0:00:58.5]} 42... Qxg2+ {[%clk 0:00:29.8]} 43.
Kxg2 {[%clk 0:00:58.5]} 43... Nxf4+ {[%clk 0:00:30.7]} 44. Kg3 {[%clk
0:00:57.9]} 44... Nd3 {[%clk 0:00:29.9]} 45. b6 {[%clk 0:00:54.1]} 45... Re6
{[%clk 0:00:25]} 46. Ne7+ {[%clk 0:00:49.2]} 46... Kh7 {[%clk 0:00:24.7]} 47. b7
{[%clk 0:00:49.1]} 47... Re5 {[%clk 0:00:22.5]} 48. h4 {[%clk 0:00:48.3]} 48...
Rxe7 {[%clk 0:00:12.2]} 49. b8=Q {[%clk 0:00:47.9]} 49... Re6 {[%clk 0:00:12.7]}
50. h5 {[%clk 0:00:34.2]} 50... Re5 {[%clk 0:00:12.6]} 51. Qxe5 {[%clk
0:00:20.7]} 51... Nfxe5 {[%clk 0:00:12.8]} 52. Rc7 {[%clk 0:00:20.3]} 52... Kg8
{[%clk 0:00:11]} 53. c5 {[%clk 0:00:20.4]} 53... Nb4 {[%clk 0:00:09.5]} 54. Re7
{[%clk 0:00:19.2]} 54... Nbc6 {[%clk 0:00:06.2]} 55. Rc7 {[%clk 0:00:19.3]}
55... Kf8 {[%clk 0:00:06]} 56. Kf4 {[%clk 0:00:19.5]} 56... Nd3+ {[%clk
0:00:05.5]} 57. Ke3 {[%clk 0:00:19.5]} 57... Nxc5 {[%clk 0:00:01.7]} 58. Rxc6
{[%clk 0:00:19]} 58... Nd7 {[%clk 0:00:02.6]} 59. Kxe4 {[%clk 0:00:18.9]} 59...
Nf6+ {[%clk 0:00:03.4]} 60. Kf5 {[%clk 0:00:18.3]} 60... Nxh5 {[%clk 0:00:04.3]}
61. Rc7 {[%clk 0:00:16.4]} 61... Kg8 {[%clk 0:00:03.4]} 62. f3 {[%clk
0:00:15.6]} 62... Kh7 {[%clk 0:00:03.7]} 63. Rd7 {[%clk 0:00:15]} 63... Nf6
{[%clk 0:00:03.8]} 64. Rf7 {[%clk 0:00:15]} 64... Ne8 {[%clk 0:00:03.9]} 65. Re7
{[%clk 0:00:14.7]} 65... Nd6+ {[%clk 0:00:04.2]} 66. Ke6 {[%clk 0:00:15]} 66...
Nc8 {[%clk 0:00:04.7]} 67. Rb7 {[%clk 0:00:13.7]} 67... h5 {[%clk 0:00:01.9]}
68. Kd7 {[%clk 0:00:13.9]} 1-0

[Event "Late-Titled-Tuesday-Blitz-April-30-2024"]
[Site "Chess.com"]
[Date "2024.04.30"]
[Round "11"]
[White "Crazy_girl99"]
[Black "PenguinPacks"]
[Result "1-0"]
[WhiteElo "2665"]
[BlackElo "2484"]
[TimeControl "180+1"]
[EndTime "16:05:56 PDT"]
[Termination "Crazy_girl99 won by resignation"]

1. e4 {[%clk 0:02:57.5]} 1... c5 {[%clk 0:02:59.7]} 2. Nf3 {[%clk 0:02:50.3]}
2... d6 {[%clk 0:02:59.8]} 3. Nc3 {[%clk 0:02:49]} 3... Nf6 {[%clk 0:02:59.9]}
4. Bc4 {[%clk 0:02:49]} 4... Nc6 {[%clk 0:02:57.4]} 5. O-O {[%clk 0:02:48.5]}
5... e6 {[%clk 0:02:57.3]} 6. d4 {[%clk 0:02:48.6]} 6... cxd4 {[%clk 0:02:57.5]}
7. Nxd4 {[%clk 0:02:48.2]} 7... Be7 {[%clk 0:02:54.4]} 8. Be3 {[%clk 0:02:46.7]}
8... O-O {[%clk 0:02:53]} 9. f4 {[%clk 0:02:39.6]} 9... d5 {[%clk 0:02:50.1]}
10. exd5 {[%clk 0:02:19.3]} 10... exd5 {[%clk 0:02:48.3]} 11. Be2 {[%clk
0:02:13.3]} 11... Bc5 {[%clk 0:02:40.4]} 12. Bf2 {[%clk 0:01:54.8]} 12... Re8
{[%clk 0:02:34.5]} 13. Bf3 {[%clk 0:01:43.9]} 13... Nxd4 {[%clk 0:02:26.4]} 14.
Bxd4 {[%clk 0:01:43.3]} 14... Qb6 {[%clk 0:02:24.8]} 15. Bxc5 {[%clk 0:01:40.3]}
15... Qxc5+ {[%clk 0:02:25.7]} 16. Kh1 {[%clk 0:01:39.8]} 16... d4 {[%clk
0:02:08.7]} 17. Ne2 {[%clk 0:01:39]} 17... Rd8 {[%clk 0:02:01]} 18. c3 {[%clk
0:01:38.1]} 18... d3 {[%clk 0:01:57.4]} 19. Nd4 {[%clk 0:01:38]} 19... Nd5
{[%clk 0:01:46.5]} 20. Qxd3 {[%clk 0:01:19.2]} 20... Nxf4 {[%clk 0:01:40.6]} 21.
Qe4 {[%clk 0:01:11.8]} 21... Ne6 {[%clk 0:01:35.3]} 22. Rae1 {[%clk 0:01:07.7]}
22... Bd7 {[%clk 0:01:26]} 23. Qh4 {[%clk 0:00:51.8]} 23... Nxd4 {[%clk
0:01:10.7]} 24. cxd4 {[%clk 0:00:50.9]} 24... Qb5 {[%clk 0:01:09.4]} 25. Bh5
{[%clk 0:00:43.2]} 25... g6 {[%clk 0:00:58.5]} 26. Rxf7 {[%clk 0:00:15.2]} 26...
Qxh5 {[%clk 0:00:53.6]} 27. Qf6 {[%clk 0:00:14.1]} 27... Qh6 {[%clk 0:00:46.9]}
28. h4 {[%clk 0:00:12.8]} 28... Be8 {[%clk 0:00:38.7]} 29. Rfe7 {[%clk
0:00:10.7]} 29... Qf8 {[%clk 0:00:36.6]} 30. Qe6+ {[%clk 0:00:08.8]} 30... Bf7
{[%clk 0:00:37.3]} 31. Qe5 {[%clk 0:00:08.9]} 31... Rd5 {[%clk 0:00:36]} 32. Qf6
{[%clk 0:00:08.6]} 32... Qg7 {[%clk 0:00:18.3]} 33. Qf3 {[%clk 0:00:06.6]} 33...
Rf8 {[%clk 0:00:17]} 34. Rxb7 {[%clk 0:00:03.6]} 34... Rf5 {[%clk 0:00:16.8]}
35. Qe3 {[%clk 0:00:03.1]} 35... Bd5 {[%clk 0:00:17.1]} 36. Rxg7+ {[%clk
0:00:02.5]} 36... Kxg7 {[%clk 0:00:17.2]} 37. Re2 {[%clk 0:00:02.4]} 37... Rf4
{[%clk 0:00:15.7]} 38. Kh2 {[%clk 0:00:01.5]} 38... Kg8 {[%clk 0:00:14.4]} 39.
Kg3 {[%clk 0:00:02.1]} 39... R8f5 {[%clk 0:00:13.1]} 40. Qe8+ {[%clk 0:00:02]}
40... Kg7 {[%clk 0:00:13.5]} 41. Qe7+ {[%clk 0:00:02.4]} 41... Rf7 {[%clk
0:00:13.5]} 42. Qd6 {[%clk 0:00:02.9]} 42... Bb7 {[%clk 0:00:11.8]} 43. Qe5+
{[%clk 0:00:03.3]} 43... Kg8 {[%clk 0:00:11.6]} 44. h5 {[%clk 0:00:03.2]} 44...
R4f5 {[%clk 0:00:11.5]} 45. Qb8+ {[%clk 0:00:03.8]} 45... Kg7 {[%clk 0:00:11.7]}
46. hxg6 {[%clk 0:00:04.5]} 46... Rg5+ {[%clk 0:00:11.7]} 47. Kh2 {[%clk
0:00:04.9]} 47... Rxg6 {[%clk 0:00:11.8]} 48. Kg1 {[%clk 0:00:05.3]} 48... Rgf6
{[%clk 0:00:11.6]} 49. Qg3+ {[%clk 0:00:03.1]} 49... Rg6 {[%clk 0:00:11.8]} 50.
Qh4 {[%clk 0:00:03.6]} 50... Kg8 {[%clk 0:00:09.8]} 51. d5 {[%clk 0:00:03.6]}
51... Rd7 {[%clk 0:00:09.5]} 52. Qe4 {[%clk 0:00:03.7]} 52... Rxd5 {[%clk
0:00:07.5]} 53. Qe8+ {[%clk 0:00:04.2]} 53... Kg7 {[%clk 0:00:08.4]} 54. Qe7+
{[%clk 0:00:04.2]} 54... Kh6 {[%clk 0:00:09.2]} 55. Qxb7 {[%clk 0:00:04.7]}
55... Rd1+ {[%clk 0:00:09.5]} 56. Kh2 {[%clk 0:00:04]} 56... Rdd6 {[%clk
0:00:10.2]} 57. Qf3 {[%clk 0:00:03.8]} 57... Kg7 {[%clk 0:00:10.6]} 58. Qc3+
{[%clk 0:00:04.4]} 58... Kf7 {[%clk 0:00:10.6]} 59. Rd2 {[%clk 0:00:05]} 59...
Rc6 {[%clk 0:00:09.9]} 60. Qb3+ {[%clk 0:00:04.3]} 60... Ke7 {[%clk 0:00:10.2]}
61. Qe3+ {[%clk 0:00:04.4]} 61... Kf7 {[%clk 0:00:10.7]} 62. Qxa7+ {[%clk
0:00:04.6]} 62... Kf6 {[%clk 0:00:11]} 63. Qd4+ {[%clk 0:00:05.2]} 63... Kg5
{[%clk 0:00:11.5]} 64. Rf2 {[%clk 0:00:05.5]} 64... Kh6 {[%clk 0:00:11.8]} 65.
Qh4+ {[%clk 0:00:05.6]} 65... Kg7 {[%clk 0:00:12.3]} 66. Qe7+ {[%clk 0:00:06.3]}
66... Kh6 {[%clk 0:00:12.9]} 67. Re2 {[%clk 0:00:06.5]} 67... Rc4 {[%clk
0:00:12.4]} 68. Qe3+ {[%clk 0:00:06.2]} 68... Kg7 {[%clk 0:00:12.3]} 69. Qa7+
{[%clk 0:00:05.9]} 69... Kh6 {[%clk 0:00:12.6]} 70. Qe7 {[%clk 0:00:06.5]} 70...
Rcg4 {[%clk 0:00:12.3]} 71. Rd2 {[%clk 0:00:06.4]} 71... Rg3 {[%clk 0:00:10.6]}
72. Qe4 {[%clk 0:00:06.2]} 72... R3g4 {[%clk 0:00:10.5]} 73. Qe3+ {[%clk
0:00:06.6]} 73... Kg7 {[%clk 0:00:10.8]} 74. Rf2 {[%clk 0:00:06.8]} 74... R4g5
{[%clk 0:00:09.9]} 75. Qc3+ {[%clk 0:00:06.9]} 75... Kh6 {[%clk 0:00:10.3]} 76.
b4 {[%clk 0:00:07.4]} 76... Rh5+ {[%clk 0:00:10.5]} 77. Kg1 {[%clk 0:00:07.6]}
77... Rd5 {[%clk 0:00:11.3]} 78. Qe3+ {[%clk 0:00:07.2]} 78... Kg7 {[%clk
0:00:11.5]} 79. Rf3 {[%clk 0:00:07.5]} 79... Rd1+ {[%clk 0:00:11.8]} 80. Kh2
{[%clk 0:00:07.4]} 80... Rdd6 {[%clk 0:00:12.7]} 81. Rg3 {[%clk 0:00:07.4]} 1-0

[Event "Late-Titled-Tuesday-Blitz-April-30-2024"]
[Site "Chess.com"]
[Date "2024.04.30"]
[Round "11"]
[White "GMKrikor"]
[Black "HajiyevKanan"]
[Result "1-0"]
[WhiteElo "2872"]
[BlackElo "2621"]
[TimeControl "180+1"]
[EndTime "16:06:06 PDT"]
[Termination "GMKrikor won by checkmate"]

1. Nf3 {[%clk 0:03:00.9]} 1... d5 {[%clk 0:03:00.1]} 2. c4 {[%clk 0:02:59]} 2...
c6 {[%clk 0:03:00.4]} 3. d4 {[%clk 0:02:58.9]} 3... Nf6 {[%clk 0:03:01.1]} 4.
Nc3 {[%clk 0:02:59.3]} 4... a6 {[%clk 0:03:00.3]} 5. Qc2 {[%clk 0:02:55.5]} 5...
g6 {[%clk 0:02:57.2]} 6. Bg5 {[%clk 0:02:47.6]} 6... Bg7 {[%clk 0:02:57.5]} 7.
Bxf6 {[%clk 0:02:43.3]} 7... Bxf6 {[%clk 0:02:58.4]} 8. cxd5 {[%clk 0:02:43.7]}
8... cxd5 {[%clk 0:02:57.4]} 9. Nxd5 {[%clk 0:02:41.3]} 9... Qxd5 {[%clk
0:02:27.3]} 10. Qxc8+ {[%clk 0:02:40.4]} 10... Qd8 {[%clk 0:02:28.2]} 11. Qxd8+
{[%clk 0:02:24.7]} 11... Kxd8 {[%clk 0:02:29.1]} 12. e3 {[%clk 0:02:24.6]} 12...
Nc6 {[%clk 0:02:28.9]} 13. Bc4 {[%clk 0:02:21]} 13... e5 {[%clk 0:02:17.7]} 14.
dxe5 {[%clk 0:02:16.2]} 14... Nxe5 {[%clk 0:02:17.6]} 15. Nxe5 {[%clk
0:02:16.6]} 15... Bxe5 {[%clk 0:02:18.5]} 16. Bxf7 {[%clk 0:02:16.8]} 16... Bxb2
{[%clk 0:02:17.9]} 17. Rb1 {[%clk 0:02:11.1]} 17... Bc3+ {[%clk 0:02:17.5]} 18.
Ke2 {[%clk 0:02:11.7]} 18... b5 {[%clk 0:02:13]} 19. Rhd1+ {[%clk 0:01:53.8]}
19... Ke7 {[%clk 0:02:13.1]} 20. Bd5 {[%clk 0:01:52.9]} 20... Rac8 {[%clk
0:02:12.2]} 21. h4 {[%clk 0:01:45.5]} 21... Rc5 {[%clk 0:02:03.4]} 22. e4 {[%clk
0:01:29.5]} 22... b4 {[%clk 0:01:57.8]} 23. g3 {[%clk 0:01:26.8]} 23... a5
{[%clk 0:01:52.8]} 24. Rbc1 {[%clk 0:01:21.3]} 24... a4 {[%clk 0:01:52.6]} 25.
Rc2 {[%clk 0:01:17]} 25... Rb8 {[%clk 0:01:48.9]} 26. Rdc1 {[%clk 0:01:10.9]}
26... Kd6 {[%clk 0:01:29]} 27. Rd1 {[%clk 0:00:53.9]} 27... Ke7 {[%clk 0:01:29]}
28. Rb1 {[%clk 0:00:48.2]} 28... Kd6 {[%clk 0:01:26.7]} 29. Kd3 {[%clk
0:00:48.5]} 29... Rc7 {[%clk 0:01:14.9]} 30. f4 {[%clk 0:00:46.3]} 30... Rbc8
{[%clk 0:01:06.1]} 31. Rbc1 {[%clk 0:00:40.7]} 31... Rc5 {[%clk 0:01:03.2]} 32.
Rb1 {[%clk 0:00:23.7]} 32... R5c7 {[%clk 0:01:00.3]} 33. Ke2 {[%clk 0:00:17.8]}
33... Rc5 {[%clk 0:00:53.6]} 34. Rd1 {[%clk 0:00:16.5]} 34... Ke7 {[%clk
0:00:54]} 35. Rd3 {[%clk 0:00:11]} 35... R8c7 {[%clk 0:00:52.1]} 36. Rd1 {[%clk
0:00:10.1]} 36... Rc8 {[%clk 0:00:52.4]} 37. Rb1 {[%clk 0:00:10.3]} 37... R8c7
{[%clk 0:00:52.1]} 38. Kf3 {[%clk 0:00:10.6]} 38... Kd6 {[%clk 0:00:51.6]} 39.
Kg4 {[%clk 0:00:10.8]} 39... Ke7 {[%clk 0:00:40.6]} 40. h5 {[%clk 0:00:08.2]}
40... Kd6 {[%clk 0:00:22.3]} 41. hxg6 {[%clk 0:00:08]} 41... hxg6 {[%clk
0:00:23.2]} 42. Rh2 {[%clk 0:00:07.9]} 42... Bf6 {[%clk 0:00:12.9]} 43. Rd1
{[%clk 0:00:06.5]} 43... Rc1 {[%clk 0:00:09.3]} 44. e5+ {[%clk 0:00:06.9]} 44...
Bxe5 {[%clk 0:00:05.7]} 45. fxe5+ {[%clk 0:00:07.4]} 45... Kxe5 {[%clk
0:00:06.6]} 46. Re2+ {[%clk 0:00:07.6]} 46... Kd6 {[%clk 0:00:05.6]} 47. Red2
{[%clk 0:00:05.5]} 47... Rxd1 {[%clk 0:00:05.4]} 48. Rxd1 {[%clk 0:00:06.4]}
48... Ke5 {[%clk 0:00:04]} 49. Bg8 {[%clk 0:00:04.5]} 49... Rc3 {[%clk 0:00:04]}
50. Rb1 {[%clk 0:00:03.6]} 50... Ra3 {[%clk 0:00:01.8]} 51. Rxb4 {[%clk
0:00:03.2]} 51... Kf6 {[%clk 0:00:02.5]} 52. Rb6+ {[%clk 0:00:03]} 52... Kg7
{[%clk 0:00:02.9]} 53. Bd5 {[%clk 0:00:03.6]} 53... Rd3 {[%clk 0:00:02.8]} 54.
Rb5 {[%clk 0:00:04.1]} 54... Rd4+ {[%clk 0:00:02.8]} 55. Kf3 {[%clk 0:00:04.1]}
55... Kf6 {[%clk 0:00:03.2]} 56. Be4 {[%clk 0:00:04]} 56... g5 {[%clk
0:00:02.5]} 57. Rb6+ {[%clk 0:00:03.6]} 57... Ke5 {[%clk 0:00:02.7]} 58. Rb5+
{[%clk 0:00:04.3]} 58... Kf6 {[%clk 0:00:03.3]} 59. Ra5 {[%clk 0:00:05]} 59...
g4+ {[%clk 0:00:03.3]} 60. Kf4 {[%clk 0:00:05.5]} 60... Rb4 {[%clk 0:00:03.7]}
61. Ra6+ {[%clk 0:00:05.9]} 61... Ke7 {[%clk 0:00:04.2]} 62. a3 {[%clk
0:00:06.5]} 62... Rd4 {[%clk 0:00:04]} 63. Ke5 {[%clk 0:00:06.3]} 63... Rc4
{[%clk 0:00:03.8]} 64. Kd5 {[%clk 0:00:05.7]} 64... Rc3 {[%clk 0:00:03.6]} 65.
Rxa4 {[%clk 0:00:03.8]} 65... Rxg3 {[%clk 0:00:04.1]} 66. Ke5 {[%clk 0:00:04.5]}
66... Kd7 {[%clk 0:00:04.6]} 67. Ra7+ {[%clk 0:00:04.7]} 67... Kc8 {[%clk
0:00:04.3]} 68. a4 {[%clk 0:00:05.3]} 68... Kb8 {[%clk 0:00:03.9]} 69. Rb7+
{[%clk 0:00:03.6]} 69... Kc8 {[%clk 0:00:03.7]} 70. Rg7 {[%clk 0:00:04.5]} 70...
Rg1 {[%clk 0:00:03.7]} 71. Bc6 {[%clk 0:00:02.8]} 71... Re1+ {[%clk 0:00:02.7]}
72. Kd6 {[%clk 0:00:03.3]} 72... Re7 {[%clk 0:00:01.6]} 73. Rxe7 {[%clk
0:00:02.8]} 73... g3 {[%clk 0:00:02.2]} 74. Re8# {[%clk 0:00:03.3]} 1-0